[Event "Paul Kerese Mälestusfestival 2022 Välkturniir"]
[Site "Paul Kerese Mälestusfestival 2022 Kiirturniir"]
[Date "????.??.??"]
[Round "6.4"]
[White "Protassov, Vlad"]
[Black "Petrovskis, Olegs"]
[Result "0-1"]
[TimeControl "3 min + 2 sek iga käigu eest"]
[WhiteElo "1816"]
[BlackElo "1984"]

1. d4 {[%clk 00:03:03]} {[%emt 00:05:12]} d5 {[%clk 00:03:03]} {[%emt
00:00:01]} 2. c4 {[%clk 00:03:04]} {[%emt 00:00:01]} c6 {[%clk 00:03:05]} 3.
Nc3 {[%clk 00:03:05]} {[%emt 00:00:01]} Nf6 {[%clk 00:03:06]} 4. Nf3 {[%clk
00:03:06]} e6 {[%clk 00:03:07]} 5. g3 {[%clk 00:03:07]} {[%emt 00:00:01]} Nbd7
{[%clk 00:03:08]} {[%emt 00:00:02]} 6. Bg2 {[%clk 00:03:08]} {[%emt 00:00:01]}
Bd6 {[%clk 00:03:07]} {[%emt 00:00:02]} 7. Nd2 {[%clk 00:03:09]} O-O {[%clk
00:03:04]} {[%emt 00:00:06]} 8. O-O {[%clk 00:03:09]} {[%emt 00:00:02]} Bc7
{[%clk 00:02:51]} {[%emt 00:00:15]} 9. e4 {[%clk 00:03:10]} dxc4 {[%clk
00:02:48]} {[%emt 00:00:04]} 10. Nxc4 {[%clk 00:03:09]} {[%emt 00:00:03]} e5
{[%clk 00:02:49]} 11. d5 {[%clk 00:03:10]} {[%emt 00:00:01]} Nb6 {[%clk
00:02:45]} {[%emt 00:00:06]} 12. Ne3 {[%clk 00:03:07]} {[%emt 00:00:05]} cxd5
{[%clk 00:02:23]} {[%emt 00:00:25]} 13. exd5 {[%clk 00:03:08]} Bd6 {[%clk
00:02:23]} {[%emt 00:00:02]} 14. h3 {[%clk 00:02:59]} {[%emt 00:00:11]} Bd7
{[%clk 00:02:24]} {[%emt 00:00:01]} 15. Qe2 {[%clk 00:03:00]} Rc8 {[%clk
00:02:24]} {[%emt 00:00:02]} 16. Rd1 {[%clk 00:02:31]} {[%emt 00:00:31]} a6
{[%clk 00:02:15]} {[%emt 00:00:12]} 17. Bd2 {[%clk 00:02:24]} {[%emt 00:00:09]}
Na4 {[%clk 00:02:03]} {[%emt 00:00:13]} 18. Nxa4 {[%clk 00:02:14]} {[%emt
00:00:12]} Bxa4 {[%clk 00:02:04]} {[%emt 00:00:01]} 19. b3 {[%clk 00:02:14]}
{[%emt 00:00:03]} Bb5 {[%clk 00:02:01]} {[%emt 00:00:05]} 20. Qe1 {[%clk
00:02:10]} {[%emt 00:00:05]} Bc5 {[%clk 00:01:41]} {[%emt 00:00:22]} 21. a4
{[%clk 00:02:11]} {[%emt 00:00:02]} Bd7 {[%clk 00:01:34]} {[%emt 00:00:09]} 22.
Rac1 {[%clk 00:01:53]} {[%emt 00:00:20]} Bd4 {[%clk 00:01:00]} {[%emt
00:00:36]} 23. Ba5 {[%clk 00:01:34]} {[%emt 00:00:21]} b6 {[%clk 00:00:57]}
{[%emt 00:00:06]} 24. Bb4 {[%clk 00:01:34]} {[%emt 00:00:01]} Re8 {[%clk
00:00:49]} {[%emt 00:00:10]} 25. Qd2 {[%clk 00:01:35]} b5 {[%clk 00:00:39]}
{[%emt 00:00:12]} 26. a5 {[%clk 00:00:56]} {[%emt 00:00:40]} Rxc1 {[%clk
00:00:40]} {[%emt 00:00:02]} 27. Rxc1 {[%clk 00:00:57]} Qb8 {[%clk 00:00:42]}
28. Nc2 {[%clk 00:00:30]} {[%emt 00:00:30]} Ba7 {[%clk 00:00:43]} 29. Ne3
{[%clk 00:00:24]} {[%emt 00:00:08]} Bd4 {[%clk 00:00:45]} 30. Bc5 {[%clk
00:00:14]} {[%emt 00:00:11]} Bxc5 {[%clk 00:00:44]} {[%emt 00:00:03]} 31. Rxc5
{[%clk 00:00:15]} {[%emt 00:00:01]} Rc8 {[%clk 00:00:45]} 32. b4 {[%clk
00:00:15]} {[%emt 00:00:02]} Qd6 {[%clk 00:00:43]} {[%emt 00:00:03]} 33. Qc3
{[%clk 00:00:16]} {[%emt 00:00:01]} Rd8 {[%clk 00:00:42]} {[%emt 00:00:04]} 34.
Rc7 {[%clk 00:00:14]} {[%emt 00:00:04]} h6 {[%clk 00:00:40]} {[%emt 00:00:03]}
35. Qc5 {[%clk 00:00:14]} {[%emt 00:00:02]} Qf8 {[%emt 00:00:05]} 36. Qxf8+
{[%clk 00:00:10]} {[%emt 00:00:06]} Kxf8 {[%clk 00:00:39]} 37. Ra7 {[%clk
00:00:11]} {[%emt 00:00:01]} Bc8 {[%clk 00:00:37]} {[%emt 00:00:04]} 38. Ra8
{[%clk 00:00:05]} {[%emt 00:00:07]} Ke7 {[%clk 00:00:36]} {[%emt 00:00:03]} 39.
g4 {[%clk 00:00:05]} {[%emt 00:00:03]} g6 {[%clk 00:00:37]} {[%emt 00:00:01]}
40. Rb8 {[%emt 00:00:03]} Kd6 {[%clk 00:00:29]} {[%emt 00:00:09]} 41. Rb6+
{[%clk 00:00:06]} {[%emt 00:00:02]} Ke7 {[%clk 00:00:31]} 0-1

[Event "Paul Kerese Mälestusfestival 2022 Välkturniir"]
[Site "Paul Kerese Mälestusfestival 2022 Kiirturniir"]
[Date "????.??.??"]
[Round "6.5"]
[White "Paan, Karel"]
[Black "Bernotas, Arturs"]
[Result "0-1"]
[TimeControl "3 min + 2 sek iga käigu eest"]
[BlackTitle "FM"]
[WhiteElo "1792"]
[BlackElo "2382"]

1. Nf3 {[%clk 00:03:03]} Nf6 {[%clk 00:03:02]} {[%emt 00:00:02]} 2. g3 {[%clk
00:03:04]} {[%emt 00:00:01]} d5 {[%clk 00:03:01]} {[%emt 00:00:04]} 3. Bg2
{[%clk 00:03:01]} {[%emt 00:00:04]} e6 {[%clk 00:03:01]} {[%emt 00:00:02]} 4.
O-O {[%clk 00:03:00]} {[%emt 00:00:03]} Be7 {[%clk 00:03:02]} {[%emt 00:00:02]}
5. c4 {[%clk 00:02:58]} {[%emt 00:00:03]} O-O {[%clk 00:02:59]} {[%emt
00:00:05]} 6. b3 {[%clk 00:02:50]} {[%emt 00:00:10]} c5 {[%clk 00:02:59]}
{[%emt 00:00:02]} 7. e3 {[%clk 00:02:39]} {[%emt 00:00:12]} Nc6 {[%clk
00:02:56]} {[%emt 00:00:05]} 8. d4 {[%clk 00:02:28]} {[%emt 00:00:14]} dxc4
{[%clk 00:02:43]} {[%emt 00:00:15]} 9. bxc4 {[%clk 00:02:27]} {[%emt 00:00:02]}
cxd4 {[%clk 00:02:23]} {[%emt 00:00:23]} 10. exd4 {[%clk 00:02:03]} {[%emt
00:00:26]} Na5 {[%clk 00:02:18]} {[%emt 00:00:08]} 11. Nbd2 {[%clk 00:01:23]}
{[%emt 00:00:41]} Qc7 {[%clk 00:02:12]} {[%emt 00:00:09]} 12. c5 {[%clk
00:01:16]} {[%emt 00:00:10]} b6 {[%clk 00:02:07]} {[%emt 00:00:07]} 13. Nb3
{[%clk 00:00:40]} {[%emt 00:00:37]} bxc5 {[%clk 00:01:42]} {[%emt 00:00:28]} 14.
Bf4 {[%clk 00:00:31]} {[%emt 00:00:10]} Qd8 {[%clk 00:01:32]} {[%emt 00:00:12]}
15. Ne5 {[%clk 00:00:13]} {[%emt 00:00:20]} Nxb3 {[%clk 00:01:28]} {[%emt
00:00:06]} 16. Qxb3 {[%clk 00:00:08]} {[%emt 00:00:07]} Nd5 {[%clk 00:01:17]}
{[%emt 00:00:12]} 17. Nc6 {[%clk 00:00:05]} {[%emt 00:00:05]} Qd7 {[%clk
00:01:07]} {[%emt 00:00:12]} 18. Nxe7+ {[%clk 00:00:06]} {[%emt 00:00:02]} Qxe7
{[%clk 00:01:08]} {[%emt 00:00:01]} 19. Bxd5 {[%clk 00:00:05]} {[%emt
00:00:02]} exd5 {[%clk 00:01:08]} {[%emt 00:00:02]} 20. Qxd5 {[%clk 00:00:06]}
Bb7 {[%clk 00:00:28]} {[%emt 00:00:43]} 21. Qxc5 {[%clk 00:00:06]} {[%emt
00:00:02]} Qe4 {[%clk 00:00:29]} {[%emt 00:00:01]} 22. f3 {[%clk 00:00:04]}
{[%emt 00:00:04]} Qd3 {[%clk 00:00:29]} {[%emt 00:00:02]} 23. Rad1 {[%clk
00:00:04]} {[%emt 00:00:02]} Qe2 {[%clk 00:00:29]} {[%emt 00:00:02]} 24. Rd2
{[%clk 00:00:05]} {[%emt 00:00:01]} Qe8 {[%clk 00:00:29]} {[%emt 00:00:02]} 25.
d5 {[%clk 00:00:05]} {[%emt 00:00:02]} Rc8 {[%clk 00:00:29]} {[%emt 00:00:01]}
26. Qb4 {[%clk 00:00:05]} {[%emt 00:00:02]} Qd7 {[%clk 00:00:25]} {[%emt
00:00:06]} 27. Bd6 {[%clk 00:00:06]} {[%emt 00:00:02]} Rfe8 {[%clk 00:00:23]}
{[%emt 00:00:04]} 28. Rdf2 {[%clk 00:00:03]} {[%emt 00:00:05]} Bxd5 {[%clk
00:00:23]} {[%emt 00:00:03]} 29. Bc5 {[%clk 00:00:03]} {[%emt 00:00:02]} Qc6
{[%clk 00:00:15]} {[%emt 00:00:10]} 30. Bd4 {[%clk 00:00:03]} {[%emt 00:00:01]}
a6 {[%clk 00:00:13]} {[%emt 00:00:04]} 31. Bb2 {[%clk 00:00:04]} f6 {[%clk
00:00:13]} {[%emt 00:00:03]} 32. Qd4 {[%clk 00:00:04]} {[%emt 00:00:02]} Rcd8
{[%clk 00:00:13]} {[%emt 00:00:03]} 33. Qc3 {[%clk 00:00:04]} {[%emt 00:00:01]}
Qb5 {[%clk 00:00:13]} {[%emt 00:00:01]} 34. g4 {[%clk 00:00:05]} {[%emt
00:00:02]} Bb7 {[%clk 00:00:10]} {[%emt 00:00:05]} 35. g5 {[%clk 00:00:04]}
{[%emt 00:00:02]} Qxg5+ {[%clk 00:00:10]} {[%emt 00:00:03]} 36. Rg2 {[%clk
00:00:06]} Qe3+ {[%clk 00:00:06]} {[%emt 00:00:05]} 37. Kh1 {[%clk 00:00:06]}
{[%emt 00:00:01]} Qxc3 {[%clk 00:00:07]} {[%emt 00:00:02]} 38. Bxc3 {[%clk
00:00:07]} {[%emt 00:00:01]} Kf7 {[%clk 00:00:07]} {[%emt 00:00:02]} 39. Rb1
{[%clk 00:00:07]} {[%emt 00:00:02]} Bxf3 {[%clk 00:00:07]} {[%emt 00:00:02]}
0-1

[Event "Paul Kerese Mälestusfestival 2022 Välkturniir"]
[Site "Paul Kerese Mälestusfestival 2022 Kiirturniir"]
[Date "????.??.??"]
[Round "6.6"]
[White "Zarovs, Aleksandrs"]
[Black "Golubovskis, Maksims"]
[Result "1-0"]
[TimeControl "3 min + 2 sek iga käigu eest"]
[WhiteElo "1527"]
[BlackElo "2163"]

1. e4 {[%clk 00:03:02]} {[%emt 00:09:09]} c5 {[%clk 00:03:02]} {[%emt
00:00:04]} 2. Nf3 {[%clk 00:03:02]} {[%emt 00:00:02]} h6 {[%clk 00:03:02]}
{[%emt 00:00:03]} 3. d4 {[%clk 00:02:51]} {[%emt 00:00:17]} cxd4 {[%clk
00:03:03]} {[%emt 00:00:02]} 4. Nxd4 {[%clk 00:02:52]} {[%emt 00:00:01]} Nc6
{[%clk 00:03:02]} {[%emt 00:00:02]} 5. Nc3 {[%clk 00:02:49]} {[%emt 00:00:05]}
d6 {[%clk 00:02:58]} {[%emt 00:00:05]} 6. Be3 {[%clk 00:02:43]} {[%emt
00:00:09]} Nf6 {[%clk 00:02:58]} {[%emt 00:00:02]} 7. f3 {[%clk 00:02:16]}
{[%emt 00:00:30]} g5 {[%clk 00:02:59]} 8. Qd2 {[%clk 00:02:11]} {[%emt
00:00:07]} Bd7 {[%clk 00:02:58]} {[%emt 00:00:03]} 9. O-O-O {[%clk 00:02:07]}
{[%emt 00:00:06]} a6 {[%clk 00:02:53]} {[%emt 00:00:07]} 10. h4 {[%clk
00:01:46]} {[%emt 00:00:22]} g4 {[%clk 00:02:54]} {[%emt 00:00:01]} 11. Be2
{[%clk 00:01:48]} Qc7 {[%clk 00:02:46]} {[%emt 00:00:11]} 12. Kb1 {[%clk
00:01:39]} {[%emt 00:00:11]} O-O-O {[%clk 00:02:38]} {[%emt 00:00:07]} 13. Nb3
{[%clk 00:01:25]} {[%emt 00:00:19]} Be6 {[%clk 00:02:28]} {[%emt 00:00:12]} 14.
Nd5 {[%clk 00:01:16]} {[%emt 00:00:11]} Bxd5 {[%clk 00:02:26]} {[%emt
00:00:04]} 15. exd5 {[%clk 00:01:15]} {[%emt 00:00:03]} Ne5 {[%clk 00:02:27]}
{[%emt 00:00:01]} 16. f4 {[%clk 00:00:52]} {[%emt 00:00:25]} Nc4 {[%clk
00:02:16]} {[%emt 00:00:13]} 17. Bxc4 {[%clk 00:00:42]} {[%emt 00:00:12]} Qxc4
{[%clk 00:02:17]} {[%emt 00:00:01]} 18. Qd4 {[%clk 00:00:32]} {[%emt 00:00:12]}
Qxd4 {[%clk 00:02:14]} {[%emt 00:00:05]} 19. Bxd4 {[%clk 00:00:29]} {[%emt
00:00:05]} Bg7 {[%clk 00:02:13]} {[%emt 00:00:02]} 20. Rhe1 {[%clk 00:00:27]}
{[%emt 00:00:04]} Rde8 {[%clk 00:02:14]} 21. Re2 {[%clk 00:00:22]} {[%emt
00:00:07]} e6 {[%clk 00:02:09]} {[%emt 00:00:06]} 22. Bxf6 {[%clk 00:00:17]}
{[%emt 00:00:07]} Bxf6 {[%clk 00:02:10]} 23. dxe6 {[%clk 00:00:16]} {[%emt
00:00:03]} Rxe6 {[%clk 00:01:44]} {[%emt 00:00:28]} 24. Rxe6 {[%clk 00:00:16]}
{[%emt 00:00:03]} fxe6 {[%clk 00:01:45]} 25. Rxd6 {[%clk 00:00:15]} {[%emt
00:00:03]} Bxh4 {[%clk 00:01:46]} {[%emt 00:00:01]} 26. Rxe6 {[%clk 00:00:16]}
{[%emt 00:00:02]} Bg3 {[%clk 00:01:46]} {[%emt 00:00:01]} 27. f5 {[%clk
00:00:16]} {[%emt 00:00:03]} h5 {[%clk 00:01:47]} 28. f6 {[%clk 00:00:10]}
{[%emt 00:00:08]} Kd7 {[%clk 00:01:49]} 29. Re7+ {[%clk 00:00:08]} {[%emt
00:00:03]} Kd6 {[%clk 00:01:50]} 30. c4 {[%clk 00:00:06]} {[%emt 00:00:05]} h4
{[%clk 00:01:41]} {[%emt 00:00:10]} 31. c5+ {[%clk 00:00:06]} {[%emt 00:00:02]}
Kd5 {[%clk 00:01:42]} 32. f7 {[%clk 00:00:04]} {[%emt 00:00:04]} h3 {[%clk
00:01:35]} {[%emt 00:00:09]} 33. Re8 {[%clk 00:00:01]} {[%emt 00:00:10]} hxg2
{[%clk 00:01:25]} {[%emt 00:00:35]} 34. Re6 {[%emt 00:00:15]} 1-0

[Event "Paul Kerese Mälestusfestival 2022 Välkturniir"]
[Site "Paul Kerese Mälestusfestival 2022 Kiirturniir"]
[Date "????.??.??"]
[Round "6.7"]
[White "Olde, Margareth"]
[Black "Mikko, Rondo"]
[Result "1/2-1/2"]
[TimeControl "3 min + 2 sek iga käigu eest"]
[WhiteTitle "WIM"]
[WhiteElo "1971"]
[BlackElo "1933"]

1. d4 {[%clk 00:03:04]} Nf6 {[%clk 00:03:03]} {[%emt 00:00:01]} 2. c4 {[%clk
00:03:05]} e6 {[%clk 00:03:04]} 3. Nf3 {[%clk 00:03:06]} {[%emt 00:00:01]} c6
{[%clk 00:03:05]} 4. g3 {[%clk 00:03:06]} {[%emt 00:00:02]} d5 {[%clk
00:03:06]} 5. Bg2 {[%clk 00:03:08]} {[%emt 00:00:01]} Be7 {[%clk 00:03:07]} 6.
O-O {[%clk 00:03:08]} {[%emt 00:00:01]} O-O {[%clk 00:03:08]} {[%emt 00:00:02]}
7. Qc2 {[%clk 00:03:10]} Ne4 {[%clk 00:03:05]} {[%emt 00:00:05]} 8. Nbd2 {[%clk
00:03:04]} {[%emt 00:00:08]} f5 {[%clk 00:03:06]} {[%emt 00:00:01]} 9. Ne5
{[%clk 00:03:04]} {[%emt 00:00:02]} Nd7 {[%clk 00:03:07]} {[%emt 00:00:01]} 10.
Nxd7 {[%clk 00:02:43]} {[%emt 00:00:23]} Bxd7 {[%clk 00:03:07]} {[%emt
00:00:02]} 11. Nf3 {[%clk 00:02:45]} Bf6 {[%clk 00:03:00]} {[%emt 00:00:09]} 12.
b3 {[%clk 00:02:44]} {[%emt 00:00:03]} Rc8 {[%clk 00:02:45]} {[%emt 00:00:17]}
13. Ne5 {[%clk 00:02:40]} {[%emt 00:00:06]} Ng5 {[%clk 00:02:43]} {[%emt
00:00:04]} 14. h4 {[%clk 00:02:33]} {[%emt 00:00:09]} Nf7 {[%clk 00:02:43]}
{[%emt 00:00:01]} 15. Bf4 {[%clk 00:02:27]} {[%emt 00:00:08]} Nxe5 {[%clk
00:02:41]} {[%emt 00:00:05]} 16. dxe5 {[%clk 00:02:28]} {[%emt 00:00:02]} Be7
{[%clk 00:02:40]} {[%emt 00:00:02]} 17. Rfd1 {[%clk 00:02:23]} {[%emt
00:00:06]} h6 {[%clk 00:02:33]} {[%emt 00:00:08]} 18. a3 {[%clk 00:02:22]}
{[%emt 00:00:04]} Qc7 {[%clk 00:02:25]} {[%emt 00:00:11]} 19. Qb2 {[%clk
00:02:23]} Rfd8 {[%clk 00:02:21]} {[%emt 00:00:06]} 20. Rac1 {[%clk 00:02:24]}
{[%emt 00:00:01]} Qa5 {[%clk 00:02:11]} {[%emt 00:00:11]} 21. b4 {[%clk
00:02:21]} {[%emt 00:00:05]} Qa4 {[%clk 00:02:12]} {[%emt 00:00:01]} 22. Be3
{[%clk 00:02:09]} {[%emt 00:00:15]} Be8 {[%clk 00:02:07]} {[%emt 00:00:07]} 23.
Rd2 {[%clk 00:02:03]} {[%emt 00:00:08]} dxc4 {[%clk 00:01:59]} {[%emt
00:00:10]} 24. Rxc4 {[%clk 00:02:02]} {[%emt 00:00:03]} Rxd2 {[%clk 00:01:58]}
{[%emt 00:00:03]} 25. Qxd2 {[%clk 00:01:44]} {[%emt 00:00:20]} Qxa3 {[%clk
00:01:57]} {[%emt 00:00:03]} 26. Rd4 {[%clk 00:01:44]} {[%emt 00:00:02]} c5
{[%clk 00:01:37]} {[%emt 00:00:23]} 27. bxc5 {[%clk 00:01:29]} {[%emt
00:00:17]} Bxc5 {[%clk 00:01:36]} {[%emt 00:00:03]} 28. Rd3 {[%clk 00:01:20]}
{[%emt 00:00:11]} Qa1+ {[%clk 00:01:25]} {[%emt 00:00:13]} 29. Kh2 {[%clk
00:01:22]} Bxe3 {[%clk 00:00:42]} {[%emt 00:00:46]} 30. Qxe3 {[%clk 00:01:19]}
{[%emt 00:00:04]} Bc6 {[%clk 00:00:32]} {[%emt 00:00:12]} 31. Ra3 {[%clk
00:01:20]} {[%emt 00:00:01]} Qb2 {[%clk 00:00:29]} {[%emt 00:00:05]} 32. Rb3
{[%clk 00:01:16]} {[%emt 00:00:06]} Qc2 {[%clk 00:00:29]} {[%emt 00:00:02]} 33.
Rc3 {[%clk 00:01:07]} {[%emt 00:00:11]} Qa2 {[%clk 00:00:24]} {[%emt 00:00:07]}
34. Ra3 {[%clk 00:00:53]} {[%emt 00:00:16]} Qc2 {[%clk 00:00:24]} {[%emt
00:00:02]} 35. Rc3 {[%clk 00:00:54]} {[%emt 00:00:01]} Qa2 {[%clk 00:00:17]}
{[%emt 00:00:09]} 36. Ra3 {[%clk 00:00:55]} {[%emt 00:00:01]} 1/2-1/2

[Event "Paul Kerese Mälestusfestival 2022 Välkturniir"]
[Site "Paul Kerese Mälestusfestival 2022 Kiirturniir"]
[Date "????.??.??"]
[Round "6.8"]
[White "Valdats, Reinis"]
[Black "Krilovs, Nikolajs"]
[Result "1-0"]
[TimeControl "3 min + 2 sek iga käigu eest"]
[WhiteElo "1427"]
[BlackElo "1971"]

1. e4 {[%clk 00:03:03]} {[%emt 00:08:46]} c6 {[%clk 00:03:01]} {[%emt
00:00:03]} 2. d4 {[%clk 00:03:04]} {[%emt 00:00:01]} d5 {[%clk 00:03:02]} 3. e5
{[%clk 00:03:06]} Bf5 {[%clk 00:03:02]} {[%emt 00:00:02]} 4. h4 {[%clk
00:03:07]} h5 {[%clk 00:03:03]} {[%emt 00:00:02]} 5. Bd3 {[%clk 00:03:07]}
{[%emt 00:00:03]} Bxd3 {[%clk 00:03:04]} {[%emt 00:00:01]} 6. Qxd3 {[%clk
00:03:07]} e6 {[%clk 00:03:05]} 7. c3 {[%clk 00:03:06]} {[%emt 00:00:04]} Ne7
{[%clk 00:03:02]} {[%emt 00:00:05]} 8. Bg5 {[%clk 00:03:03]} {[%emt 00:00:05]}
Qb6 {[%clk 00:03:02]} {[%emt 00:00:02]} 9. Qc2 {[%clk 00:02:42]} {[%emt
00:00:22]} Nf5 {[%clk 00:03:03]} {[%emt 00:00:02]} 10. Nf3 {[%clk 00:02:41]}
{[%emt 00:00:03]} c5 {[%clk 00:03:03]} {[%emt 00:00:02]} 11. O-O {[%clk
00:02:12]} {[%emt 00:00:31]} Nc6 {[%clk 00:03:01]} {[%emt 00:00:05]} 12. Be3
{[%clk 00:01:57]} {[%emt 00:00:17]} cxd4 {[%clk 00:02:48]} {[%emt 00:00:14]} 13.
cxd4 {[%clk 00:01:58]} {[%emt 00:00:01]} Be7 {[%clk 00:02:39]} {[%emt
00:00:11]} 14. Rd1 {[%clk 00:01:55]} {[%emt 00:00:04]} Nxh4 {[%clk 00:02:39]}
{[%emt 00:00:04]} 15. Nxh4 {[%clk 00:01:51]} {[%emt 00:00:05]} Bxh4 {[%clk
00:02:39]} {[%emt 00:00:02]} 16. Nc3 {[%clk 00:01:51]} {[%emt 00:00:02]} Be7
{[%clk 00:02:37]} {[%emt 00:00:04]} 17. a3 {[%clk 00:01:48]} {[%emt 00:00:06]}
O-O {[%clk 00:02:27]} {[%emt 00:00:12]} 18. Qe2 {[%clk 00:01:48]} {[%emt
00:00:01]} g6 {[%clk 00:02:24]} {[%emt 00:00:06]} 19. g4 {[%clk 00:01:20]}
{[%emt 00:00:30]} h4 {[%clk 00:02:21]} {[%emt 00:00:04]} 20. Kg2 {[%clk
00:01:10]} {[%emt 00:00:11]} Kg7 {[%clk 00:02:21]} {[%emt 00:00:02]} 21. Qd2
{[%clk 00:00:47]} {[%emt 00:00:25]} Rh8 {[%clk 00:02:22]} {[%emt 00:00:02]} 22.
Rh1 {[%clk 00:00:46]} {[%emt 00:00:03]} Na5 {[%clk 00:02:18]} {[%emt 00:00:06]}
23. Bg5 {[%clk 00:00:19]} {[%emt 00:00:29]} Bxg5 {[%clk 00:02:15]} {[%emt
00:00:04]} 24. Qxg5 {[%clk 00:00:20]} {[%emt 00:00:01]} Qd8 {[%clk 00:02:16]}
25. Qf4 {[%clk 00:00:12]} {[%emt 00:00:10]} g5 {[%clk 00:01:58]} {[%emt
00:00:20]} 26. Qd2 {[%clk 00:00:05]} {[%emt 00:00:09]} Nb3 {[%clk 00:01:59]}
{[%emt 00:00:02]} 27. Qd1 {[%clk 00:00:05]} {[%emt 00:00:02]} Nxa1 28. Qxa1
{[%clk 00:00:06]} Rc8 {[%clk 00:01:58]} {[%emt 00:00:03]} 29. Qc1 {[%clk
00:00:06]} {[%emt 00:00:02]} a6 {[%clk 00:01:53]} {[%emt 00:00:07]} 30. Qd2
{[%clk 00:00:07]} Rc4 {[%clk 00:01:54]} {[%emt 00:00:01]} 31. f4 {[%clk
00:00:07]} {[%emt 00:00:02]} Qb6 {[%clk 00:01:50]} {[%emt 00:00:05]} 32. Rd1
{[%clk 00:00:05]} {[%emt 00:00:04]} h3+ {[%clk 00:01:45]} {[%emt 00:00:07]} 33.
Kh2 {[%clk 00:00:06]} Rh4 {[%clk 00:01:44]} {[%emt 00:00:04]} 34. f5 {[%clk
00:00:06]} {[%emt 00:00:02]} Rxg4 {[%clk 00:01:41]} {[%emt 00:00:04]} 35. f6+
{[%clk 00:00:04]} {[%emt 00:00:04]} Kg8 {[%clk 00:01:29]} {[%emt 00:00:13]} 36.
Kxh3 {[%clk 00:00:04]} {[%emt 00:00:02]} Rcxd4 {[%clk 00:01:26]} {[%emt
00:00:05]} 37. Qe3 {[%clk 00:00:04]} {[%emt 00:00:03]} Rh4+ {[%clk 00:01:25]}
{[%emt 00:00:03]} 38. Kg3 {[%clk 00:00:05]} Rdg4+ {[%clk 00:01:26]} {[%emt
00:00:01]} 39. Kf3 {[%clk 00:00:06]} {[%emt 00:00:02]} Rh3+ {[%clk 00:01:26]}
{[%emt 00:00:01]} 1-0